Cogmind - Beta 16 @@@ ROGUE MODE // 2025.11.14 @ 10:22:25 Player: jes Result: Destroyed by G-34 Mercenary with Small Laser Performance ------------- Evolutions (0) 0 Regions Visited (1) 200 Robots Destroyed (9) 45 Value Destroyed (147) 147 Prototype IDs (0) 0 Alien Tech Used (0) 0 Bonus (0) 0 TOTAL SCORE: 392 Bonus ------- None Cogmind --------- Core Integrity 0/250 Matter 265/300 Energy 99/100 System Corruption 1% Temperature Cool (6) Movement Core (100) Ox1 Location -10/Materials Parts ------- > --- POWER (1) -------- (None) > --- PROPULSION (2) --- (None) > --- UTILITY (2) ------ Small Storage Unit > --- WEAPON (2) ------- (None) > --- INVENTORY (8) ---- Light Ion Engine Light Ion Engine Aluminum Leg High-capacity Matter Pod (84) Signal Interpreter Terrain Scanner Terrain Scan Processor Peak State ------------ > --- POWER ------------ Ion Engine > --- PROPULSION ------- Aluminum Leg Aluminum Leg > --- UTILITY ---------- Small Storage Unit Tractor Beam > --- WEAPON ----------- Assault Rifle Light Assault Rifle > --- INVENTORY -------- Light Ion Engine Light Ion Engine Aluminum Leg High-capacity Matter Pod Terrain Scan Processor Grenade Launcher [Rating: 7] Favorites ----------- Power Ion Engine Engine Ion Engine Propulsion Aluminum Leg Leg Aluminum Leg Flight Unit Flight Unit Utility Small Storage Unit Device Tractor Beam Storage Small Storage Unit Weapon Light Assault Rifle Ballistic Gun Light Assault Rifle Launcher Grenade Launcher Special Weapon Mining Laser Build | -11 -10 ------- Run | Yrd Mat Slots Evolved . | . . Power . | . . Propulsion . | . . Utility . | . . Weapon . | . . Parts Attached 13 | 2 11 Power 2 | . 2 Engine 2 | . 2 Core . | . . Reactor . | . . Propulsion 5 | . 5 Treads . | . . Leg 3 | . 3 Wheel . | . . Hover . | . . Flight 2 | . 2 Utility 2 | . 2 Device 1 | . 1 Storage 1 | . 1 Processor . | . . Hackware . | . . Protection . | . . Artifact . | . . Weapon 4 | 2 2 Energy Gun . | . . Energy Cannon . | . . Ballistic Gun 2 | 2 . Ballistic Cannon . | . . Launcher 1 | . 1 Special Weapon 1 | . 1 Impact Weapon . | . . Slashing Weapon . | . . Piercing Weapon . | . . Special Melee Weapon . | . . Unidentified Prototypes . | . . Parts Lost 10 | . 10 Power 1 | . 1 Propulsion 4 | . 4 Utility 1 | . 1 Weapon 4 | . 4 Highest Loss Streak 9 | . 9 To Critical Strikes 1 | . 1 Average Backups 5 | 3 6 Power 1 | . 1 Propulsion 1 | 1 1 Utility 2 | . 2 Weapon . | . . Tool/Special . | . . Unused Backups 8 | 2 6 Power 1 | . 1 Propulsion 2 | 1 1 Utility 4 | . 4 Weapon 1 | 1 . Tool/Special . | . . Average Slot Usage (%) 68 | . 68 Engine 8 | . 8 Leg 18 | . 18 Flight 2 | . 2 Device 6 | . 6 Storage 12 | . 12 Ballistic Gun 17 | . 17 Peak Build Rating 7 | 2 7 Average Rating 4 | 1 4 On Entrance 1 | . 2 Avg Prop Armor Cover (%) 19 | . 19 Naked Turns . | . . Heaviest Build 14 | 3 14 Greatest Support 20 | 3 20 Greatest Overweight (x) 2 | . 2 Average Overweight (x) . | . . Largest Inventory Capacity 8 | 5 8 Average Capacity 7 | 5 7 Most Carried 8 | 5 8 Average Carried 5 | 4 6 Final Capacity 8 | 5 8 Final Carried 7 | 5 7 Class Distribution -------------------- 100% | Mutant Dominant Class ---------------- Mutant | -10/Materials Resources | -11 -10 ----------- Run | Yrd Mat Matter Collected 457 | 182 275 Remotely 93 | . 93 Salvage Created 277 | . 277 Parts 19 | . 19 Haulers Intercepted . | . . Recyclers Shooed 1 | . 1 Parts Field Recycled . | . . Retrieved Matter . | . . Parts Self-Destructed . | . . Prevented . | . . Parts Restored . | . . Kills | -11 -10 ------- Run | Yrd Mat Combat Hostiles Destroyed 6 | . 6 Guns 5 | . 5 AOE 1 | . 1 Classes Destroyed 4 | . 4 Builder 2 | . 2 Recycler 1 | . 1 Swarmer 4 | . 4 Grunt 2 | . 2 Best Kill Streak 2 | . 2 Combat Bots Only 2 | . 2 Max Kills in Single Turn 1 | . 1 Gunslinging . | . . Exploded 1 | . 1 Melee . | . . Uniques/NPCs Destroyed . | . . Combat | -11 -10 -------- Run | Yrd Mat Hostile Shots Fired 117 | . 117 Missed 27 | . 27 Hits 90 | . 90 Projectile 90 | . 90 Critical Strikes 1 | . 1 Part Disruptions 1 | . 1 Damage Taken 980 | . 980 Core 250 | . 250 Absorbed by Shields . | . . Core Remaining (%) 100 | 100 . Volleys Fired 47 | . 47 Largest 2 | . 2 Hottest 100 | . 100 Shots Fired 58 | . 58 Gun 51 | . 51 Cannon . | . . Launcher 3 | . 3 Special 4 | . 4 Kinetic 51 | . 51 Thermal 4 | . 4 Explosive 3 | . 3 Electromagnetic . | . . Robot Hit Streak 18 | . 18 Robot Miss Streak 4 | . 4 Penetration Max . | . . Secondary Targets . | . . Shots Hit Robots 39 | . 39 Core Hits 17 | . 17 Critical Kills . | . . Critical Parts Destroyed . | . . Critical Strikes . | . . Melee Attacks . | . . Impact . | . . Slashing . | . . Piercing . | . . Sneak Attacks . | . . Combat Hostiles . | . . Follow-up Attacks . | . . Damage Inflicted 513 | . 513 Guns 396 | . 396 Cannons . | . . Explosions 98 | . 98 Melee . | . . Ramming 19 | . 19 Kinetic 396 | . 396 Thermal . | . . Explosive 98 | . 98 Electromagnetic . | . . Impact . | . . Slashing . | . . Piercing . | . . Highest Corruption 1 | . 1 Average Corruption 1 | . 1 Corruption Purged . | . . Corruption Blocked . | . . Effects 2 | . 2 Matter Fused 1 | . 1 Heat Flow Errors 1 | . 1 Overload Shots . | . . Overflow Damage 3 | . 3 Projectiles . | . . Explosions 3 | . 3 Melee . | . . Knockbacks . | . . Impact . | . . Kinetic . | . . Secondary . | . . Self-Inflicted Damage 45 | . 45 Shots 1 | . 1 Rammed 6 | . 6 Targets Rammed 6 | . 6 Kicked . | . . Crushed . | . . Highest Temperature 239 | . 239 Average Temperature 118 | . 118 Received Heat Transfer 201 | . 201 Siege Activations . | . . Martial Activations . | . . Shielding Activations . | . . Robots Disrupted . | . . Combat Hostiles . | . . Robots Corrupted . | . . Combat Hostiles . | . . Parts Fried . | . . Impact Corruptions . | . . Robots Melted . | . . Combat Hostiles . | . . Parts Melted . | . . Heat Transferred . | . . Parts Sabotaged . | . . Parts Stolen . | . . Parts Stripped . | . . Power Chain Reactions . | . . Alert | -11 -10 ------- Run | Yrd Mat Maximum Alert Level . | . . Low Security (%) 100 | 100 100 Level 1 . | . . Level 2 . | . . Level 3 . | . . Level 4 . | . . Level 5 . | . . High Security . | . . Max Security . | . . Peak Influence 55 | . 55 Initial . | . . Average 16 | . 17 Influence Increases 213 | . 213 Destroy 0b10 Robot/C 120 | . 120 Destroy 0b10 Robot/NC 15 | . 15 Destroy Leader 20 | . 20 Successful Hack 11 | . 11 Disable Machine 15 | . 15 Destroy Structure 17 | . 17 Partial Spotted 15 | . 15 Influence Decreases 210 | . 210 Time Decay 146 | . 146 Lost Part 64 | . 64 Squads Dispatched 1 | . 1 Investigation . | . . Extermination . | . . Reinforcement 1 | . 1 Assault . | . . Garrison . | . . Intercept . | . . Searches Triggered . | . . Construction Impeded . | . . Haulers Reinforced . | . . Active Scanning Responses . | . . Cargo Convoy Interrupts . | . . Stealth | -11 -10 --------- Run | Yrd Mat Distress Signals . | . . Communications Jammed . | . . Distress Signals . | . . Times Spotted 10 | . 10 Peak Tracking Total 4 | . 4 Tactical Retreats . | . . Traps | -11 -10 ------- Run | Yrd Mat Traps Triggered . | . . Indirectly . | . . Trap Hack Attempts . | . . Triggered . | . . Disarmed . | . . Reprogrammed 6 | . 6 Reused . | . . Traps Extracted . | . . Installed . | . . Triggered . | . . Machines | -11 -10 ---------- Run | Yrd Mat Machines Disabled 1 | . 1 Max in Single Turn 1 | . 1 Machines Repaired . | . . Machines Dismantled . | . . Machines Sabotaged . | . . Overloaded Fab Kills . | . . Hacking | -11 -10 --------- Run | Yrd Mat Machines Accessed 2 | . 2 Terminals 2 | . 2 Fabricators . | . . Repair Stations . | . . Recycling Units . | . . Scanalyzers . | . . Garrison Access . | . . Total Hacks 4 | . 4 Successful 3 | . 3 Failed 1 | . 1 Catastrophic 1 | . 1 Database Lockouts . | . . Manual 1 | . 1 Terminals 4 | . 4 Fabricators . | . . Repair Stations . | . . Recycling Units . | . . Scanalyzers . | . . Garrison Access . | . . Terminal Hacks 3 | . 3 Unreport Threat 1 | . 1 Locate Traps 1 | . 1 Reprogram Traps 1 | . 1 Fabricator Hacks . | . . Repair Station Hacks . | . . Recycling Unit Hacks . | . . Scanalyzer . | . . Garrison Access Hacks . | . . Unauthorized Hacks . | . . Terminals . | . . Fabricators . | . . Repair Stations . | . . Recycling Units . | . . Scanalyzers . | . . Garrison Access . | . . Data Cores Recovered . | . . Used . | . . Hacking Detections 2 | . 2 Full Trace Events . | . . Feedback Events . | . . Feedback Blocked . | . . Robot Schematics Acquired . | . . Robots Built . | . . Authchips . | . . Time . | . . Total Robot Build Rating . | . . Part Schematics Acquired . | . . Parts Built . | . . Authchips . | . . Time . | . . Total Part Build Rating . | . . Part Studies Acquired . | . . Parts Repaired . | . . Time . | . . Parts Recycled . | . . Recycled Matter . | . . Retrieved Matter . | . . Retrieved Components . | . . Parts Scanalyzed . | . . Part Schematics Acquired . | . . Parts Damaged . | . . Bothacking | -11 -10 ------------ Run | Yrd Mat Used RIF Installer . | . . Robots Hacked . | . . Non-combat . | . . Combat . | . . Robot Hacks Applied . | . . Relay Couplers Released . | . . Fabnet Peak Effective % . | . . Robots Rewired . | . . Allies Hacked . | . . Hacks Repelled . | . . Allies | -11 -10 -------- Run | Yrd Mat Total Allies . | . . Largest Group . | . . Highest-Rated Group . | . . Highest-Rated Ally . | . . Total Orders . | . . Ally Attacks . | . . Total Damage . | . . Kills . | . . Allies Corrupted . | . . Allies Melted . | . . Intel | -11 -10 ------- Run | Yrd Mat Active Infowar (turns) . | . . Robot Analysis Total . | . . Derelict Logs Recovered . | . . Drone Launches . | . . Drone Recoveries . | . . Exploration | -11 -10 ------------- Run | Yrd Mat Turns Passed 470 | 43 427 Spaces Moved 338 | 65 273 Core 182 | 65 117 Treads . | . . Legs 121 | . 121 Wheels . | . . Hover . | . . Flight 35 | . 35 Fastest Speed 37 | 50 37 Average Speed 85 | 50 93 Slowest Speed 150 | 50 150 Overloaded Moves . | . . Propulsion Burnouts . | . . Robots Hopped . | . . Potential Cave-ins . | . . Cave-ins Triggered . | . . Exploration Rate (%) 22 | 4 40 Regions Visited 1 Branch Regions . Pre-discovered Areas . | . . Known Exits Taken . | . . Unknown Exits Taken 1 | 1 . Scrap Searched . | . . Spaces Dug 13 | . 13 Terrain Destroyed 20 | . 20 Melee . | . . Projectile 2 | . 2 AOE 18 | . 18 Terrain Rammed . | . . Walls Destroyed . | . . Machines Disabled . | . . Actions | -11 -10 --------- Run | Yrd Mat Total 458 | 75 383 Wait 34 | . 34 Move 337 | 64 273 Hop . | . . Pick Up 14 | 7 7 Fast Attach 7 | 2 5 Attach 6 | . 6 Detach 1 | . 1 Swap 2 | . 2 Drop 4 | 2 2 Fire 47 | . 47 Melee . | . . Ram 6 | . 6 Kick . | . . Crush . | . . Escape Stasis . | . . Rewire . | . . Trap . | . . Miscellaneous . | . . Route ------- -11/Scrapyard -10/Materials (discovered 2 exits: [*Min x2]) History --------- Turn | Location | Event 6 | -11/Scrapyard | Discovered new exit (range 15) 44 | -11/Scrapyard | Entered Materials 258 | -10/Materials | Discovered new exit (range 11) 314 | -10/Materials | Build established: Mutant 384 | -10/Materials | Core integrity fell below 50% 397 | -10/Materials | Discovered new exit (range 11) 442 | -10/Materials | Core integrity fell below 20% 463 | -10/Materials | Lost 9 parts (1p4n1u3w) 471 | -10/Materials | Destroyed by G-34 Mercenary with Small Laser Last Messages --------------- 00389_ S-10 Pest destroyed. 00395_ K-01 Serf cleans the Matter Filter. 00397_ EXIT=FOUND 00397_ K-01 Serf collects debris. 00401_ Acquired Mining Laser. 00412_ Flight Unit destroyed. 00427_ Critical hit (Destroy). 00427_ Tractor Beam destroyed. 00432_ Mining Laser destroyed. 00436_ Slammed into S-10 Pest. 00456_ S-10 Pest destroyed. 00461_ Connecting with Terminal... >>Alert(Purge) No threats on record. >>Traps(Locate) Found 6 traps in 1 array: 6x Shock Trap Map updated. >>Traps(Reprogram) Reprogrammed 6 Shock Traps. Map ----- +----------------------------------------------------+ | ????????????????# # | | ????????????????# # #######+## # | | ????????????????# ########## ## ## | | ????????????????# #????# ## ## | | ???????????###### #????# ## # | | ?????????? #????# """"" ## | | ????????? #????# """"" ## * | | ???????? #????# """"" ## | | ?????????# """ """ ###### """"" ## | | ?????????# """ """ + """"" ## | | ?????????# """ """% #### """"" + # | | ?????????# ^ ^ #??? """"" ## # | | ?????????# ^^^ ^ #??# ###+### | | ?????????# """ """ #??###+#####?????? | | ??????????? """ """ #########??????????????? | | ??????????? """ """g # "T" #??????????????? | | ?????????? # #??????????????? | | ?????????? + #??????????????? | | ?????????? #########??????????????? | | ?????????? #??????????????????????? | | ?????????? ######### #??????????????????????? | | ???????????? ??????????#k#??????????????????????? | | ????????????????????????# #??????????????????????? | | ????????????????????????# #??????????????????????? | | ????????????????????????# #??????????????????????? | | ????????????????????????#@#??????????????????????? | | ????????????????????????# ?????????????????????? | | ????????????????????????+ ???????????????????? | | ????????????????????????# ?????????????????? | | ????????????????????????### ##????????????????? | | ??????????????????????????? #?????????????????? | | ??????????????????????????? +?????????????????? | | ???????????????????????????#####?????????????????? | | ?????????????????????????????????????????????????? | | ?????????????????????????????????????????????????? | | ?????????????????????????????????????????????????? | | | | | | | | | | | | | | | | | | | | | | | | | | | | | +----------------------------------------------------+ Best States ------------- Heat Dissipation 25 Energy Generation 10 Energy Capacity 250 Matter Stores 300 Matter Capacity 300 Sight Range 16 Terrain Scan Density 10 Evasion (%) 62 Item Schematics ----------------- None Robot Schematics ------------------ None Fabricated ------------ Nothing Repaired ---------- Nothing Studied --------- None Alien Tech Used ----------------- None Achievements -------------- None Challenges ------------ None Game ------ Seed WarpTrapReplicator Manual? 0 Play Time 00:10:53 Cumulative 77.9 hours Start 2025.11.14 @ 10:13:14 End 2025.11.14 @ 10:22:25 Sessions 1 Manual Loads 0 Difficulty Rogue Special Mode None Game No. 44 Rogue 44 Adventurer 0 Explorer 0 Win Type - Total 0 Types 0/0/0/0/0/0/0/0/0/0 Lore% 17 Gallery% 28 Achievement% 22 Wizard Run 0 Options --------- Layout 2 ASCII 1 Keyboard 1 Movement Vi Keybinds 0 Fullscreen 2 Font 32/Terminus Map View 50x44 Zoom Use 0% Tactical HUD 1 Map Filters NONE Filters NONE Steam 1 RUN: 5507ce09-9959-4a35-96f4-65dce2c539fa